bitfinex/quotes_SOLUSD_20240908
["timestamp","ask_amount","ask_price","bid_price","bid_amount"]
[1725773335865,68.43,128.54,128.47,9.771476]
[1725773336086,45.0,128.54,128.48,20.0]
[1725773337973,45.0,128.54,128.49,11.32794822]
[1725773338188,45.0,128.54,128.5,20.0]
[1725773342378,68.43,128.54,128.5,20.0]
[1725773342586,68.43,128.54,128.48,20.0]
[1725773343895,45.0,128.54,128.48,20.0]
[1725773347996,45.0,128.54,128.48,21.55643867]
[1725773349398,45.0,128.54,128.48,20.0]
[1725773349696,22.1773,128.55,128.49,9.771476]
[1725773349872,22.1773,128.55,128.5,20.0]
[1725773350781,45.0,128.54,128.5,20.0]
[1725773361701,45.0,128.54,128.51,9.771476]
[1725773362108,45.0,128.54,128.52,20.0]
[1725773364805,24.92292122,128.58,128.52,20.0]
[1725773364997,24.92292122,128.58,128.53,9.771476]
[1725773364998,15.5123,128.58,128.53,9.771476]
[1725773365191,15.5123,128.58,128.54,20.0]
[1725773366180,45.0,128.57,128.54,20.0]
[1725773368188,45.0,128.57,128.53,9.771476]
[1725773368416,45.0,128.57,128.54,20.0]
[1725773370509,45.89849868,128.57,128.54,20.0]
[1725773370907,45.0,128.57,128.54,20.0]
[1725773378930,6.2548,128.59,128.54,20.0]
[1725773379220,7.15329868,128.59,128.54,20.0]
[1725773379597,7.15329868,128.59,128.53,9.771476]
[1725773379812,7.15329868,128.59,128.54,20.0]
[1725773380211,45.0,128.58,128.54,20.0]
[1725773382405,45.0,128.58,128.55,9.771476]
[1725773400440,6.417,128.63,128.57,9.771476]
[1725773400743,6.417,128.63,128.6,9.771476]
[1725773401032,6.417,128.63,128.58,21.55524732]
[1725773401033,6.417,128.63,128.58,20.0]
[1725773401236,15.6134,128.61,128.54,9.771476]
[1725773401414,0.89849868,128.6,128.55,20.0]
[1725773401813,45.89849868,128.6,128.55,20.0]
[1725773403034,45.89849868,128.6,128.54,20.0]
[1725773403344,45.0,128.6,128.54,20.0]
[1725773404843,15.6134,128.61,128.55,9.771476]
[1725773405425,15.6134,128.61,128.56,20.0]
[1725773406343,45.0,128.6,128.56,20.0]
[1725773409241,15.6134,128.61,128.56,20.0]
[1725773410735,45.0,128.6,128.56,20.0]
[1725773415038,45.0,128.6,128.54,20.0]
[1725773415350,45.89849868,128.6,128.54,20.0]
[1725773415941,45.0,128.6,128.54,20.0]
[1725773417435,68.43,128.6,128.54,20.0]
[1725773417746,6.4991,128.59,128.52,29.771476]
[1725773417956,45.0,128.58,128.52,29.771476]
[1725773418323,45.89849868,128.58,128.52,20.0]
[1725773418540,45.89849868,128.58,128.51,26.375576]
[1725773418541,0.89849868,128.57,128.51,26.375576]
[1725773419047,45.89849868,128.58,128.51,26.375576]
[1725773419848,45.89849868,128.58,128.52,20.0]
[1725773420325,0.89849868,128.57,128.52,20.0]
[1725773420648,45.0,128.58,128.52,20.0]
[1725773421252,15.2257,128.57,128.52,20.0]
[1725773421548,45.0,128.56,128.52,20.0]
[1725773423145,6.4991,128.55,128.5,20.0]
[1725773423327,6.4991,128.55,128.47,22.9462]
[1725773423328,45.0,128.54,128.48,29.771476]
[1725773425254,0.89849868,128.53,128.44,22.6668]
[1725773425434,16.3657,128.53,128.46,9.771476]
[1725773425625,45.0,128.52,128.46,9.771476]
[1725773426241,45.0,128.52,128.44,22.6668]
[1725773426242,6.4991,128.55,128.48,9.771476]
[1725773426545,29.9291,128.55,128.48,9.771476]
[1725773427846,45.0,128.54,128.48,9.771476]
[1725773428439,45.89849868,128.54,128.48,9.771476]
[1725773429046,45.0,128.54,128.48,9.771476]
[1725773430636,45.89849868,128.54,128.48,9.771476]
[1725773432753,45.0,128.54,128.48,9.771476]
[1725773432926,45.89849868,128.54,128.48,9.771476]
[1725773433133,45.0,128.54,128.48,9.771476]
[1725773433445,45.89849868,128.54,128.48,9.771476]
[1725773433850,45.89849868,128.54,128.44,22.6668]
[1725773434151,45.89849868,128.54,128.47,9.771476]
[1725773434363,45.0,128.54,128.48,20.0]
[1725773438550,45.89849868,128.54,128.48,20.0]
[1725773438877,45.0,128.54,128.48,20.0]
[1725773439071,52.18967813,128.59,128.52,9.771476]
[1725773439232,6.1129,128.61,128.54,9.771476]
[1725773439553,32.36204488,128.65,128.56,9.771476]
[1725773439771,42.09102166,128.65,128.57,20.0]
[1725773439933,33.15897678,128.64,128.57,20.0]
[1725773440741,45.0,128.63,128.57,20.0]
[1725773442366,68.43,128.63,128.57,20.0]
[1725773442664,78.15897678,128.63,128.57,20.0]
[1725773442866,78.15897678,128.63,128.56,20.0]
[1725773448966,9.72897678,128.62,128.56,20.0]
[1725773449267,45.0,128.61,128.55,20.0]
[1725773455065,0.89849868,128.6,128.55,20.0]
[1725773455865,45.0,128.61,128.55,20.0]
[1725773456665,45.0,128.61,128.54,20.0]
[1725773468173,0.89849868,128.6,128.54,20.0]
[1725773468375,9.72897678,128.6,128.53,20.0]
[1725773468680,45.0,128.59,128.53,20.0]
[1725773474860,45.0,128.6,128.53,20.0]
[1725773481187,6.2229,128.61,128.53,20.0]
[1725773481485,0.89849868,128.6,128.53,20.0]
[1725773481873,34.03747546,128.6,128.53,20.0]
[1725773482191,15.3426,128.59,128.53,20.0]
[1725773482378,0.89849868,128.58,128.53,20.0]
[1725773482579,45.0,128.58,128.53,20.0]
[1725773486879,45.89849868,128.58,128.53,20.0]
[1725773487799,0.89849868,128.57,128.53,20.0]
[1725773487969,45.89849868,128.58,128.53,20.0]
[1725773488773,45.0,128.58,128.53,20.0]
[1725773491896,2.96061891,128.59,128.53,20.0]
[1725773492199,6.2229,128.61,128.53,20.0]
[1725773492974,0.89849868,128.6,128.53,20.0]
[1725773493288,45.89849868,128.6,128.53,20.0]
[1725773493477,55.62747546,128.6,128.53,20.0]
[1725773494079,54.72897678,128.6,128.53,20.0]
[1725773494399,0.89849868,128.59,128.53,20.0]
[1725773495082,54.72897678,128.6,128.53,20.0]
[1725773496506,0.89849868,128.59,128.53,20.0]
[1725773496991,0.89849868,128.58,128.53,20.0]
[1725773500101,78.13897678,128.6,128.53,20.0]
[1725773500398,83.58217678,128.6,128.52,16.3607]
[1725773500584,23.41,128.58,128.49,15.8115]
[1725773500785,45.89849868,128.57,128.49,15.8115]
[1725773502090,45.89849868,128.57,128.5,20.0]
[1725773503093,69.30849868,128.57,128.5,20.0]
[1725773503297,69.30849868,128.57,128.49,15.8115]
[1725773503495,69.30849868,128.57,128.5,20.0]
[1725773504505,68.41,128.57,128.5,20.0]
[1725773505411,0.89849868,128.56,128.49,15.8115]
[1725773507017,84.36007678,128.57,128.49,15.8115]
[1725773508017,87.25450412,128.57,128.49,15.8115]
[1725773508199,63.84450412,128.57,128.49,15.8115]
[1725773510115,63.84450412,128.57,128.5,20.0]
[1725773511301,63.84450412,128.57,128.49,15.8115]
[1725773511521,63.84450412,128.57,128.5,20.0]
[1725773512026,63.84450412,128.57,128.5,29.771476]
[1725773512200,60.95007678,128.57,128.5,29.771476]
[1725773512802,1.8,128.6,128.52,9.771476]
[1725773513118,1.8,128.6,128.53,20.0]
[1725773513906,29.04841532,128.61,128.53,20.0]
[1725773515406,45.0,128.6,128.53,20.0]
[1725773515923,16.21643234,128.61,128.54,9.771476]
[1725773516098,9.99533234,128.61,128.55,21.55559721]
[1725773516623,9.99533234,128.61,128.55,20.0]
[1725773517806,45.0,128.6,128.55,20.0]
[1725773518017,45.0,128.6,128.55,21.55560148]
[1725773518405,9.14554621,128.65,128.56,9.771476]
[1725773518621,6.2211,128.65,128.58,9.771476]
[1725773520026,6.2211,128.65,128.59,20.0]
[1725773521312,45.0,128.64,128.59,20.0]
[1725773521625,55.89383102,128.64,128.59,20.0]
[1725773521828,55.89383102,128.64,128.58,20.0]
[1725773522711,54.99533234,128.64,128.58,20.0]
[1725773523224,54.99533234,128.64,128.57,15.0524]
[1725773523610,78.40533234,128.64,128.57,15.0524]
[1725773523814,0.89849868,128.63,128.55,16.077576]
[1725773524014,0.89849868,128.63,128.56,20.0]
[1725773524213,83.84693234,128.64,128.56,20.0]
[1725773524624,83.84693234,128.64,128.55,20.0]
[1725773530133,44.9486,128.63,128.55,20.0]
[1725773530317,45.89849868,128.62,128.55,20.0]
[1725773530516,6.3303,128.61,128.55,20.0]
[1725773530830,45.89849868,128.6,128.55,20.0]
[1725773534229,45.89849868,128.6,128.54,20.0]
[1725773543340,45.89849868,128.6,128.52,20.0]
[1725773543515,15.1698,128.59,128.52,20.0]
[1725773543715,45.89849868,128.58,128.52,20.0]
[1725773543922,0.89849868,128.57,128.51,20.0]
[1725773544820,6.2179,128.57,128.51,20.0]
[1725773545141,45.0,128.56,128.51,20.0]
[1725773555625,45.0,128.56,128.52,20.0]
[1725773558976,45.0,128.56,128.49,20.0]
[1725773559255,45.0,128.56,128.49,29.771476]
[1725773559433,45.0,128.56,128.51,9.771476]
[1725773559634,45.0,128.56,128.52,20.0]
[1725773567866,45.0,128.56,128.49,20.0]
[1725773568171,45.0,128.56,128.5,9.771476]
[1725773568337,45.0,128.56,128.51,20.0]
[1725773572653,45.0,128.56,128.5,9.771476]
[1725773572851,45.0,128.56,128.51,20.0]
[1725773578435,15.5495,128.55,128.51,20.0]
[1725773578654,6.417,128.53,128.5,20.0]
[1725773578940,45.0,128.52,128.49,20.0]
[1725773583991,15.5495,128.55,128.5,9.771476]
[1725773584147,6.417,128.56,128.52,9.771476]
[1725773584347,6.417,128.56,128.53,20.0]
[1725773586656,45.0,128.55,128.53,20.0]
[1725773590555,45.0,128.55,128.51,20.0]
[1725773601186,45.0,128.55,128.52,9.771476]
[1725773601364,45.0,128.55,128.53,20.0]
[1725773609169,45.0,128.55,128.54,9.771476]
[1725773609395,45.0,128.55,128.54,31.32722574]
[1725773613001,45.0,128.55,128.54,29.771476]
[1725773613303,6.4013,128.59,128.54,29.771476]
[1725773613477,6.4013,128.59,128.57,9.771476]
[1725773614488,16.6604,128.61,128.57,9.771476]
[1725773614701,16.6604,128.61,128.58,21.55524643]
[1725773615779,45.0,128.6,128.58,20.0]
[1725773617906,6.4013,128.63,128.59,9.771476]
[1725773618090,6.4013,128.63,128.6,20.0]
[1725773619100,16.6604,128.64,128.61,9.771476]
[1725773619408,6.4013,128.66,128.62,21.55488834]
[1725773619713,6.4013,128.66,128.63,9.771476]
[1725773619915,6.4013,128.66,128.64,20.0]
[1725773620593,6.4013,128.66,128.63,20.0]
[1725773620898,6.4013,128.66,128.61,20.0]
[1725773621600,45.0,128.65,128.61,20.0]
[1725773621784,45.0,128.65,128.61,21.55484254]
[1725773622906,45.0,128.65,128.61,20.0]
[1725773628613,45.0,128.65,128.59,9.771476]
[1725773628817,45.0,128.65,128.6,20.0]
[1725773638995,15.9024,128.64,128.6,20.0]
[1725773639201,45.0,128.63,128.6,20.0]
[1725773640615,6.1357,128.62,128.56,9.771476]
[1725773640792,45.0,128.61,128.56,9.771476]
[1725773642092,45.0,128.61,128.57,20.0]
[1725773643411,45.0,128.61,128.58,9.771476]
[1725773643617,45.0,128.61,128.59,20.0]
[1725773656229,45.0,128.61,128.58,9.771476]
[1725773656432,45.0,128.61,128.59,20.0]
[1725773663437,45.0,128.61,128.52,15.8283]
[1725773663639,45.0,128.61,128.53,9.771476]
[1725773663640,16.53279868,128.6,128.53,9.771476]
[1725773663816,45.0,128.59,128.53,9.771476]
[1725773664334,0.89849868,128.58,128.53,9.771476]
[1725773664633,6.1291,128.58,128.53,9.771476]
[1725773664935,45.0,128.57,128.53,9.771476]
[1725773665717,45.0,128.57,128.54,20.0]
[1725773668837,45.89849868,128.57,128.54,20.0]
[1725773669136,45.0,128.57,128.52,20.0]
[1725773677943,16.5961,128.56,128.52,20.0]
[1725773678149,51.4465,128.55,128.5,9.771476]
[1725773678336,51.4465,128.55,128.51,20.0]
[1725773682258,51.4465,128.55,128.52,9.771476]
[1725773682443,16.5961,128.56,128.54,9.771476]
[1725773682642,6.4465,128.58,128.55,20.0]
[1725773683835,45.0,128.57,128.55,20.0]
[1725773694144,45.0,128.57,128.56,20.0]
[1725773695055,45.0,128.57,128.54,20.0]
[1725773703655,45.0,128.57,128.54,19.0]
[1725773705670,6.4465,128.58,128.55,9.771476]
[1725773705849,6.4465,128.58,128.56,20.0]
[1725773716983,6.4465,128.58,128.56,20.0]
[1725773717668,16.5961,128.59,128.56,20.0]
[1725773717979,45.0,128.58,128.57,9.771476]
[1725773718186,45.0,128.58,128.57,29.771476]
[1725773718573,6.3987,128.61,128.57,29.771476]
[1725773718776,6.3987,128.61,128.58,20.0]
[1725773720287,45.0,128.6,128.58,20.0]
[1725773728881,45.0,128.6,128.56,20.0]
[1725773738510,6.3987,128.61,128.56,20.0]
[1725773739815,45.0,128.6,128.56,20.0]
[1725773742935,0.89849868,128.59,128.56,20.0]
[1725773746809,45.0,128.6,128.56,20.0]
[1725773747007,6.3987,128.61,128.57,9.771476]
[1725773747314,6.3987,128.61,128.58,20.0]
[1725773748409,45.0,128.6,128.58,20.0]
[1725773759711,45.89849868,128.6,128.58,20.0]
[1725773759922,45.89849868,128.6,128.54,29.771476]
[1725773763155,45.0,128.6,128.54,29.771476]
[1725773767333,45.89849868,128.6,128.54,29.771476]
[1725773767628,22.1839,128.59,128.54,20.0]
[1725773767846,45.89849868,128.58,128.47,15.4742]
[1725773768010,0.89849868,128.57,128.5,9.771476]
[1725773768924,22.1839,128.56,128.47,15.4742]
[1725773769245,45.0,128.55,128.47,15.4742]
[1725773769534,0.89849868,128.54,128.47,9.771476]
[1725773770717,0.89849868,128.54,128.48,20.0]
[1725773776530,15.6773,128.52,128.48,20.0]
[1725773776729,15.6773,128.52,128.47,20.0]
[1725773776730,45.0,128.51,128.47,20.0]
[1725773784129,45.0,128.51,128.46,9.771476]
[1725773784339,45.0,128.51,128.47,20.0]
[1725773796070,45.89849868,128.51,128.47,20.0]
[1725773796455,6.5041,128.5,128.47,20.0]
[1725773796653,45.0,128.49,128.47,20.0]
[1725773799582,45.0,128.49,128.48,20.0]
[1725773799751,45.0,128.49,128.44,9.771476]
[1725773799954,45.0,128.49,128.45,20.0]
[1725773800142,45.0,128.49,128.44,9.771476]
[1725773800843,45.0,128.49,128.42,0.872693]
[1725773801066,15.3677,128.48,128.43,9.771476]
[1725773801373,45.0,128.47,128.43,9.771476]
[1725773801548,45.0,128.47,128.44,20.0]
[1725773803143,45.0,128.47,128.44,21.55687802]
[1725773804753,45.0,128.47,128.44,21.5568745]
[1725773804965,45.0,128.47,128.44,20.0]
[1725773805167,45.0,128.47,128.44,9.771476]
[1725773805555,45.0,128.47,128.45,20.0]
[1725773817974,6.0139,128.46,128.42,0.872693]
[1725773818181,45.0,128.45,128.42,0.872693]
[1725773820203,61.4404,128.45,128.42,0.872693]
[1725773853724,62.33889868,128.45,128.42,0.872693]
[1725773855813,61.4404,128.45,128.42,0.872693]
[1725773857526,0.89849868,128.44,128.42,0.872693]
[1725773857915,61.4404,128.45,128.42,0.872693]
[1725773859811,0.89849868,128.44,128.42,0.872693]
[1725773860509,61.4404,128.45,128.42,0.872693]
[1725773866810,16.4404,128.45,128.42,0.872693]
[1725773867322,6.0139,128.46,128.42,0.872693]
[1725773868624,45.0,128.45,128.42,0.872693]
[1725773872908,0.89849868,128.44,128.42,0.872693]
[1725773875026,45.0,128.45,128.42,0.872693]
[1725773875427,0.89849868,128.44,128.42,0.872693]
[1725773878520,45.0,128.45,128.42,0.872693]
[1725773884258,45.0,128.45,128.37,20.0]
[1725773893250,68.4,128.45,128.37,20.0]
[1725773896275,79.09865223,128.45,128.37,20.0]
[1725773898262,16.6514,128.44,128.29,10.872693]
[1725773898545,45.0,128.43,128.36,20.0]
[1725773905070,47.97009939,128.43,128.36,20.0]
[1725773906671,47.97009939,128.43,128.35,16.0277]
[1725773906852,47.97009939,128.43,128.36,20.0]
[1725773909853,16.4555,128.41,128.31,22.6199]
[1725773910063,45.0,128.4,128.33,9.771476]
[1725773910354,45.0,128.4,128.34,20.0]
[1725773910565,45.0,128.4,128.34,9.771476]
[1725773911275,45.0,128.4,128.33,9.771476]
[1725773911478,45.0,128.4,128.34,20.0]
[1725773911663,45.0,128.4,128.33,9.771476]
[1725773911864,45.0,128.4,128.34,20.0]
[1725773914285,22.6658,128.45,128.38,9.771476]
[1725773914573,22.6658,128.48,128.4,9.771476]
[1725773914749,6.2103,128.48,128.42,9.771476]
[1725773914951,6.2103,128.48,128.43,20.0]
[1725773915778,6.2103,128.48,128.42,20.0]
[1725773916158,6.2103,128.48,128.4,20.0]
[1725773916760,45.0,128.47,128.4,20.0]
[1725773922888,16.4555,128.46,128.4,20.0]
[1725773923055,45.0,128.45,128.4,20.0]
[1725773926560,45.0,128.45,128.36,16.3138]
[1725773926791,6.0975,128.44,128.36,16.3138]
[1725773926966,45.0,128.43,128.36,16.3138]
[1725773927982,45.0,128.43,128.37,20.0]
[1725773933381,47.84960014,128.43,128.37,20.0]
[1725773939803,47.84960014,128.43,128.33,22.6162]
[1725773939984,47.84960014,128.43,128.35,9.771476]
[1725773940184,47.84960014,128.43,128.36,20.0]
[1725773940383,6.0975,128.44,128.37,9.771476]
[1725773940589,6.0975,128.44,128.38,20.0]
[1725773940796,9.05451595,128.44,128.39,9.771476]
[1725773941849,45.0,128.43,128.39,9.771476]
[1725773942415,45.0,128.43,128.38,20.0]
[1725773948800,45.0,128.43,128.39,9.771476]
[1725773949016,45.0,128.43,128.4,20.0]
[1725773949790,16.4555,128.46,128.41,9.771476]
[1725773951093,45.0,128.45,128.41,9.771476]
[1725773956415,45.0,128.45,128.4,20.0]
[1725773962698,45.89849868,128.45,128.4,20.0]
[1725773962917,45.0,128.45,128.4,20.0]
[1725773968421,0.89849868,128.44,128.38,29.771476]
[1725773969214,15.1061,128.42,128.33,22.1095]
[1725773969415,45.0,128.41,128.35,9.771476]
[1725773970626,45.0,128.41,128.36,20.0]
[1725773980628,45.0,128.41,128.33,15.8034]
[1725773980833,45.0,128.41,128.34,9.771476]
[1725773981021,45.0,128.41,128.35,20.0]
[1725773988048,45.0,128.41,128.34,29.771476]
[1725773999050,6.4563,128.4,128.34,29.771476]
[1725773999249,45.0,128.39,128.34,29.771476]
[1725773999550,15.1061,128.42,128.38,9.771476]
[1725773999755,15.1061,128.42,128.39,20.0]
[1725774000753,45.0,128.41,128.39,20.0]
[1725774002754,45.0,128.41,128.37,9.771476]
[1725774003049,45.0,128.41,128.38,20.0]
[1725774004381,45.0,128.41,128.36,9.771476]
[1725774004651,45.0,128.41,128.37,20.0]
[1725774007555,45.0,128.41,128.36,9.771476]
[1725774007731,45.0,128.41,128.37,20.0]
[1725774013033,45.0,128.41,128.31,20.0]
[1725774013233,45.0,128.41,128.35,9.771476]
[1725774013433,45.0,128.41,128.36,20.0]
[1725774015440,45.0,128.41,128.37,11.32934866]
[1725774015758,45.0,128.41,128.38,20.0]
[1725774038381,45.0,128.41,128.37,9.771476]
[1725774038582,45.0,128.41,128.38,20.0]
[1725774044676,45.0,128.41,128.36,9.771476]
[1725774044862,45.0,128.41,128.37,20.0]
[1725774045785,45.0,128.41,128.37,21.55771531]
[1725774047864,15.1061,128.42,128.38,9.771476]
[1725774048066,6.4563,128.43,128.4,9.771476]
[1725774048372,21.4789,128.46,128.41,20.0]
[1725774049601,45.0,128.45,128.41,20.0]
[1725774050784,21.4789,128.49,128.44,9.771476]
[1725774051173,21.4789,128.49,128.45,20.0]
[1725774052680,45.0,128.48,128.43,9.771476]
[1725774052879,45.0,128.48,128.44,20.0]
[1725774067510,45.0,128.48,128.38,15.62]
[1725774067803,45.0,128.48,128.44,9.771476]
[1725774069697,45.0,128.48,128.38,15.62]
[1725774069886,45.0,128.48,128.44,9.771476]
[1725774075114,45.0,128.48,128.38,15.62]
[1725774075115,45.0,128.48,128.43,9.771476]
[1725774075292,45.0,128.48,128.44,20.0]
[1725774076393,45.89849868,128.48,128.44,20.0]
[1725774078692,15.9728,128.46,128.35,16.0317]
[1725774078899,6.5235,128.44,128.39,9.771476]
[1725774079307,45.0,128.43,128.39,9.771476]
[1725774081518,45.0,128.43,128.4,20.0]
[1725774081814,45.0,128.43,128.38,9.771476]
[1725774082012,45.0,128.43,128.39,20.0]
[1725774082812,15.9728,128.42,128.38,9.771476]
[1725774083016,45.0,128.41,128.38,9.771476]
[1725774084210,45.0,128.41,128.39,20.0]
[1725774103442,15.9728,128.42,128.39,20.0]
[1725774104621,6.5235,128.44,128.39,20.0]
[1725774104826,6.5235,128.44,128.4,9.771476]
[1725774106119,45.0,128.43,128.4,9.771476]
[1725774110145,45.0,128.43,128.39,20.0]
[1725774110351,45.0,128.43,128.4,9.771476]
[1725774130464,45.0,128.43,128.38,9.771476]
[1725774130670,45.0,128.43,128.39,20.0]
[1725774139773,45.0,128.43,128.37,9.771476]
[1725774139958,45.0,128.43,128.38,20.0]
[1725774142270,44.79415777,128.43,128.38,20.0]
[1725774144773,0.89849868,128.42,128.38,20.0]
[1725774146875,44.79415777,128.43,128.38,20.0]
[1725774151805,44.79415777,128.43,128.37,9.771476]
[1725774152103,44.79415777,128.43,128.38,20.0]
[1725774155403,44.79415777,128.43,128.38,29.771476]
[1725774161806,0.89849868,128.42,128.33,21.4365]
[1725774162011,0.89849868,128.42,128.34,29.771476]
[1725774163197,0.89849868,128.42,128.33,15.1304]
[1725774163198,46.98019868,128.42,128.33,15.1304]
[1725774163411,45.0,128.41,128.35,9.771476]
[1725774164305,45.0,128.41,128.37,9.771476]
[1725774180807,45.0,128.41,128.38,20.0]
[1725774186714,22.6517,128.42,128.39,9.771476]
[1725774188830,6.2413,128.42,128.39,9.771476]
[1725774189031,22.6725,128.45,128.41,9.771476]
[1725774189572,22.6725,128.45,128.42,20.0]
[1725774190340,22.6725,128.45,128.42,9.771476]
[1725774190914,45.0,128.44,128.42,9.771476]
[1725774191433,6.2321,128.45,128.42,9.771476]
[1725774191639,22.6725,128.48,128.44,9.771476]
[1725774192836,45.0,128.47,128.44,9.771476]
[1725774193717,45.0,128.47,128.42,9.771476]
[1725774204944,45.0,128.47,128.38,20.0]
[1725774205121,68.43,128.47,128.4,9.771476]
[1725774205322,68.43,128.47,128.41,20.0]
[1725774214346,22.6725,128.48,128.44,9.771476]
[1725774214559,37.91286096,128.51,128.44,9.771476]
[1725774214560,59.49286096,128.51,128.44,9.771476]
[1725774214759,21.58,128.51,128.46,9.771476]
[1725774216249,45.0,128.5,128.46,9.771476]
[1725774222343,44.22007348,128.5,128.46,9.771476]
[1725774226459,13.06240885,128.53,128.46,9.771476]
[1725774227653,45.0,128.52,128.46,9.771476]
[1725774230974,68.43,128.52,128.46,9.771476]
[1725774231149,45.0,128.52,128.46,9.771476]
[1725774234847,45.89849868,128.52,128.46,9.771476]
[1725774235670,45.0,128.52,128.46,9.771476]
[1725774237070,44.79430192,128.52,128.46,9.771476]
[1725774238469,0.89849868,128.51,128.46,9.771476]
[1725774240973,44.79430192,128.52,128.46,9.771476]
[1725774244588,43.79430192,128.52,128.46,9.771476]
[1725774251175,23.43,128.51,128.46,9.771476]
[1725774251474,45.0,128.5,128.46,9.771476]
[1725774251673,43.79430192,128.52,128.46,9.771476]
[1725774257980,43.79430192,128.52,128.47,20.0]
[1725774260083,0.89849868,128.51,128.47,20.0]
[1725774260873,67.22430192,128.52,128.45,15.702]
[1725774261189,67.22430192,128.52,128.46,20.0]
[1725774263074,0.89849868,128.51,128.45,15.702]
[1725774264489,67.22430192,128.52,128.45,15.702]
[1725774272106,10.17022267,128.53,128.46,29.771476]
[1725774272294,8.96473587,128.56,128.5,9.771476]
[1725774272596,33.03594928,128.57,128.52,9.771476]
[1725774273268,18.79631138,128.59,128.5,15.4152]
[1725774273464,28.96653405,128.59,128.53,9.771476]
[1725774273974,25.98742267,128.59,128.53,9.771476]
[1725774274889,45.0,128.58,128.53,9.771476]
[1725774275299,0.89849868,128.57,128.51,9.771476]
[1725774275480,0.89849868,128.57,128.52,20.0]
[1725774277676,0.89849868,128.57,128.5,15.4152]
[1725774278090,0.89849868,128.57,128.51,20.0]
[1725774279381,78.60022267,128.58,128.49,9.771476]
[1725774279581,78.60022267,128.58,128.5,20.0]
[1725774282600,29.9699,128.57,128.5,20.0]
[1725774282804,45.0,128.56,128.5,20.0]
[1725774282980,23.43,128.55,128.5,20.0]
[1725774283181,45.0,128.54,128.5,20.0]
[1725774283380,45.0,128.54,128.48,9.771476]
[1725774283381,45.89849868,128.54,128.48,9.771476]
[1725774283587,45.89849868,128.54,128.49,20.0]
[1725774284183,0.89849868,128.54,128.49,20.0]
[1725774286694,68.43,128.55,128.49,20.0]
[1725774293211,68.43,128.55,128.48,9.771476]
[1725774293413,68.43,128.55,128.49,20.0]
[1725774300521,40.95279868,128.54,128.44,16.4595]
[1725774300823,51.4237,128.53,128.46,9.771476]
[1725774301025,0.89849868,128.52,128.47,20.0]
[1725774301225,0.89849868,128.51,128.47,20.0]
[1725774301929,51.4237,128.53,128.47,20.0]
[1725774302099,52.32219868,128.53,128.47,20.0]
[1725774305597,51.4237,128.53,128.47,20.0]
[1725774306327,74.8537,128.53,128.47,20.0]
[1725774306729,0.89849868,128.52,128.46,9.771476]
[1725774307029,74.8537,128.53,128.46,9.771476]
[1725774307030,0.89849868,128.51,128.46,9.771476]
[1725774307200,0.89849868,128.51,128.44,9.771476]